bitfinex/quotes_ETHUSD_20251110
["timestamp","ask_amount","ask_price","bid_price","bid_amount"]
[1762793349253,0.6648,3525.4,3524.5,14.905504]
[1762793349554,2.83664716,3525.3,3524.5,14.905504]
[1762793349918,0.1989,3524.9,3524.5,14.905504]
[1762793350119,0.9642,3524.6,3524.3,0.405504]
[1762793350572,0.9642,3524.6,3524.2,0.405504]
[1762793350773,0.002,3524.6,3524.5,3.52348588]
[1762793351256,0.9642,3524.6,3523.6,7.5]
[1762793351419,0.4913,3524.4,3523.6,7.5]
[1762793351617,0.4913,3524.4,3523.7,0.405504]
[1762793351820,3.3083767,3524.3,3523.5,1.259712]
[1762793352064,0.4709,3524.3,3523.4,14.5]
[1762793352215,0.1931,3523.5,3523.1,7.5]
[1762793352418,0.1931,3523.5,3523.1,10.33839693]
[1762793352649,0.1931,3523.5,3523.1,1.77616081]
[1762793352848,0.1931,3523.5,3523.2,0.405504]
[1762793353056,0.1931,3523.5,3523.1,1.77616081]
[1762793353218,0.1931,3523.5,3523.1,4.61449033]
[1762793353418,0.1939,3523.9,3523.1,1.77616081]
[1762793353615,0.002,3524.6,3523.8,2.83783158]
[1762793353616,0.4709,3524.4,3523.8,2.83783158]
[1762793353840,0.4709,3524.4,3523.8,2.8378184]
[1762793354069,0.002,3524.6,3523.9,4.58459249]
[1762793354379,0.002,3524.6,3524.4,0.405504]
[1762793354665,0.002,3524.6,3524.5,3.24278588]
[1762793355367,0.002,3524.6,3524.5,3.86786247]
[1762793355726,0.002,3524.6,3524.5,4.14936247]
[1762793355928,0.002,3524.6,3524.5,4.43086247]
[1762793356158,0.002,3524.6,3524.5,20.19057447]
[1762793356542,0.002,3524.6,3524.5,19.90907447]
[1762793356724,0.002,3524.6,3524.5,7.905504]
[1762793357325,0.002,3524.6,3524.5,7.5]
[1762793357326,0.4933,3524.6,3524.5,7.5]
[1762793357524,0.002,3524.6,3524.5,7.5]
[1762793357767,0.002,3524.6,3523.9,0.405504]
[1762793357975,0.002,3524.6,3524.1,0.405504]
[1762793358265,0.002,3524.6,3524.4,0.405504]
[1762793358426,0.002,3524.6,3524.5,2.83728188]
[1762793358628,0.002,3524.6,3524.5,0.405504]
[1762793358860,0.002,3524.6,3524.4,0.405504]
[1762793359045,0.4933,3524.6,3524.4,0.405504]
[1762793359249,0.9622,3524.5,3524.1,0.002]
[1762793359458,0.4913,3524.4,3524.1,0.407504]
[1762793359829,0.4913,3524.4,3524.1,0.002]
[1762793360650,0.4913,3524.4,3524.1,0.407504]
[1762793360969,0.002,3524.6,3524.1,0.002]
[1762793361273,0.4729,3524.6,3524.1,0.002]
[1762793361674,0.002,3524.6,3524.5,0.2815]
[1762793361854,0.002,3524.6,3524.5,4.78399788]
[1762793362567,0.005,3524.9,3524.8,3.24254439]
[1762793362770,0.005,3524.9,3524.8,8.10863688]
[1762793363068,0.005,3524.9,3524.8,22.89013688]
[1762793363267,0.005,3524.9,3524.8,25.63697458]
[1762793363566,0.005,3524.9,3524.8,14.905504]
[1762793363870,0.1989,3524.9,3524.8,14.905504]
[1762793364070,0.005,3524.9,3524.8,14.905504]
[1762793364271,0.6902,3524.9,3524.8,14.5]
[1762793364573,3.52718615,3524.9,3524.4,7.5]
[1762793364768,3.52718615,3524.9,3524.2,0.405504]
[1762793364769,0.4709,3524.8,3524.2,0.405504]
[1762793365073,2.83712088,3524.7,3524.1,0.002]
[1762793365364,0.1918,3524.9,3524.1,0.002]
[1762793365565,2.83714236,3524.7,3524.2,0.405504]
[1762793365768,2.83721007,3524.6,3524.1,0.002]
[1762793366169,0.4807,3524.5,3524.1,0.002]
[1762793366581,0.4807,3524.5,3524.1,0.60254317]
[1762793366755,3.31803505,3524.5,3524.1,0.002]
[1762793366954,3.31803505,3524.5,3524.1,0.407504]
[1762793367175,0.472,3524.2,3524.1,0.002]
[1762793367395,3.7902234,3524.2,3524.1,0.002]
[1762793367564,0.472,3524.2,3524.1,0.002]
[1762793367754,0.1918,3524.9,3524.1,0.002]
[1762793367755,2.83737292,3524.4,3524.1,0.002]
[1762793367972,0.4807,3524.5,3524.1,0.002]
[1762793368279,0.472,3524.2,3524.1,0.002]
[1762793368597,0.472,3524.2,3524.1,0.60361561]
[1762793368783,0.9527,3524.2,3524.1,0.60361561]
[1762793369450,3.7902234,3524.2,3524.1,0.60361561]
[1762793370566,0.472,3524.2,3524.1,0.60361561]
[1762793370762,0.1918,3524.9,3524.1,0.60361561]
[1762793370965,3.31778892,3524.8,3524.2,0.60161561]
[1762793371191,3.31778892,3524.8,3524.3,1.35610358]
[1762793371391,0.4807,3524.8,3524.4,0.60161561]
[1762793371692,0.4807,3524.7,3524.5,0.60161561]
[1762793371896,0.4807,3524.7,3524.6,0.60161561]
[1762793372391,0.9527,3524.7,3524.6,1.35610358]
[1762793372753,0.472,3524.7,3524.6,1.35610358]
[1762793372957,0.1918,3524.9,3524.6,3.43880106]
[1762793373158,0.005,3524.9,3524.7,2.09906123]
[1762793373353,0.005,3524.9,3524.8,2.12743163]
[1762793373554,0.005,3524.9,3524.8,0.62998601]
[1762793373773,0.005,3524.9,3524.8,0.60161561]
[1762793374112,0.001,3525.4,3524.9,2.83695991]
[1762793374311,0.001,3525.4,3525.1,2.0280079]
[1762793374610,0.001,3525.4,3525.2,0.60161561]
[1762793374777,0.001,3525.4,3525.3,2.62854974]
[1762793374973,0.001,3525.4,3525.3,2.62837082]
[1762793375196,0.001,3525.4,3525.3,0.60161561]
[1762793376112,0.001,3525.4,3525.3,3.84375762]
[1762793376290,0.0002,3525.4,3525.3,3.84375762]
[1762793376695,0.0002,3525.4,3525.3,1.00711961]
[1762793377619,0.0002,3525.4,3525.3,5.70054018]
[1762793377785,0.007,3525.9,3525.4,0.405504]
[1762793377981,0.001,3525.7,3525.6,0.405504]
[1762793378324,0.001,3525.7,3525.6,18.34351625]
[1762793378492,0.001,3525.7,3525.6,15.50711961]
[1762793378699,0.001,3525.7,3525.6,1.00711961]
[1762793379378,0.001,3525.7,3525.6,3.84351625]
[1762793379578,0.001,3525.7,3525.6,1.92828255]
[1762793380441,0.001,3525.7,3525.6,1.00711961]
[1762793380934,0.001,3525.7,3525.6,0.60161561]
[1762793381083,0.001,3525.7,3525.6,2.62056086]
[1762793381698,0.001,3525.7,3525.6,3.02606486]
[1762793382350,0.001,3525.7,3525.6,5.8624615]
[1762793382700,0.001,3525.7,3525.6,7.1841623]
[1762793382929,0.001,3525.7,3525.6,5.62151705]
[1762793383656,0.001,3525.7,3525.6,13.12151705]
[1762793383960,0.001,3525.7,3525.6,12.66521705]
[1762793384157,2.83769275,3526.5,3525.6,12.25971305]
[1762793384356,0.002,3526.5,3526.1,0.405504]
[1762793384507,0.002,3526.5,3526.2,0.60161561]
[1762793385162,0.002,3526.5,3526.2,1.00711961]
[1762793385360,0.002,3526.5,3526.2,4.39233362]
[1762793385845,0.002,3526.5,3526.4,4.50096917]
[1762793386042,0.002,3526.5,3526.4,8.96750803]
[1762793386269,0.002,3526.5,3526.4,6.90509466]
[1762793386938,0.002,3526.5,3526.4,13.7612609]
[1762793387107,0.002,3526.6,3526.5,4.50088876]
[1762793387306,0.002,3526.6,3526.5,6.01060437]
[1762793387542,0.002,3526.6,3526.5,8.43004774]
[1762793387741,0.002,3526.6,3526.5,15.93004774]
[1762793388242,0.002,3526.6,3526.5,15.47374774]
[1762793388764,0.002,3526.6,3526.5,7.97374774]
[1762793388915,0.002,3526.6,3526.5,8.43004774]
[1762793389336,0.474,3526.6,3526.5,1.00711961]
[1762793389538,0.002,3526.6,3526.5,1.00711961]
[1762793390267,3.30959235,3526.6,3526.5,0.60161561]
[1762793390406,0.9547,3526.6,3526.5,1.60716931]
[1762793390611,0.002,3526.6,3526.5,0.60161561]
[1762793390848,0.002,3526.6,3526.5,2.51491852]
[1762793391414,0.474,3526.6,3526.5,1.00711961]
[1762793391639,0.9547,3526.6,3526.5,1.00711961]
[1762793391948,0.474,3526.6,3526.5,1.00711961]
[1762793392589,0.474,3526.6,3526.5,1.60748359]
[1762793392590,3.79029235,3526.6,3526.5,1.60748359]
[1762793392899,0.9547,3526.6,3526.5,1.60748359]
[1762793393259,0.474,3526.6,3526.5,1.60748359]
[1762793393460,0.002,3526.6,3526.5,2.01298759]
[1762793395263,0.002,3526.6,3526.5,1.00711961]
[1762793395468,0.002,3526.6,3526.5,2.01298759]
[1762793395692,0.002,3526.6,3526.5,2.01498759]
[1762793395857,0.4894,3526.6,3526.5,2.01498759]
[1762793396358,0.4894,3526.6,3526.5,0.98734961]
[1762793396574,0.002,3526.6,3526.5,0.98734961]
[1762793397095,0.002,3526.6,3526.5,4.82889035]
[1762793397272,0.002,3526.6,3526.5,2.48441759]
[1762793397596,0.002,3526.6,3526.5,1.99321759]
[1762793398280,0.002,3526.6,3526.5,0.98734961]
[1762793398855,0.002,3526.6,3526.5,5.32009035]
[1762793399111,0.002,3526.6,3526.5,2.00092308]
[1762793399259,0.002,3526.6,3526.5,0.98734961]
[1762793399789,0.002,3526.6,3526.5,3.82302237]
[1762793400117,0.002,3526.6,3526.5,4.31422237]
[1762793400337,0.0012,3526.6,3526.5,4.31422237]
[1762793400634,0.0012,3526.6,3526.5,6.04603437]
[1762793400811,0.002,3526.7,3526.6,4.50080835]
[1762793400994,0.002,3526.7,3526.6,5.46410835]
[1762793401527,0.005,3526.9,3526.8,3.24093555]
[1762793401727,0.005,3526.9,3526.8,4.99184755]
[1762793401940,0.001,3527.4,3527.3,3.24053362]
[1762793402092,0.001,3527.4,3527.3,10.26412922]
[1762793402276,0.005,3527.9,3527.8,3.24013181]
[1762793402494,0.005,3527.9,3527.8,4.78082239]
[1762793403315,0.005,3527.9,3527.8,6.04053439]
[1762793403612,0.4721,3529.5,3528.8,0.405504]
[1762793403847,0.007,3529.9,3528.8,4.52617179]
[1762793404119,0.007,3529.9,3529.6,3.23866198]
[1762793404318,0.007,3529.9,3529.5,0.405504]
[1762793404518,0.007,3529.9,3529.5,3.23875486]
[1762793404722,0.007,3529.9,3529.7,0.405504]
[1762793404920,0.005,3530.9,3529.8,0.4912]
[1762793405129,0.4741,3530.7,3530.2,0.75386142]
[1762793405290,2.83252814,3530.5,3530.0,0.75386142]
[1762793405494,0.4874,3530.1,3529.9,0.405504]
[1762793405917,0.4874,3530.1,3529.8,0.405504]
[1762793406235,0.002,3530.7,3530.1,0.405504]
[1762793406748,0.002,3530.7,3530.2,0.1883]
[1762793406887,0.002,3530.7,3530.5,0.405504]
[1762793407292,0.002,3530.7,3530.6,3.23788376]
[1762793407934,0.002,3530.7,3530.6,0.405504]
[1762793408364,0.002,3530.7,3530.6,6.61007542]
[1762793408509,0.005,3530.9,3530.8,3.23772332]
[1762793408716,0.005,3530.9,3530.8,9.13773462]
[1762793409011,0.002,3531.1,3531.0,0.405504]
[1762793409208,0.002,3531.1,3531.0,1.00476243]
[1762793409432,0.002,3531.1,3531.0,4.937629]
[1762793409645,0.002,3531.1,3531.0,5.409729]
[1762793410250,0.005,3531.9,3531.1,0.405504]
[1762793410451,0.005,3531.9,3531.8,5.1761334]
[1762793410752,0.005,3531.9,3531.8,5.77539183]
[1762793410952,0.005,3531.9,3531.8,1.00476243]
[1762793411123,3.99183724,3531.9,3531.8,0.405504]
[1762793411446,2.83150584,3531.7,3531.2,0.405504]
[1762793411649,2.83161839,3531.6,3531.4,0.405504]
[1762793411853,0.4721,3531.8,3530.9,0.405504]
[1762793412151,0.4721,3531.7,3531.1,0.405504]
[1762793412335,0.4721,3531.7,3530.9,0.405504]
[1762793412336,3.30361746,3531.7,3530.9,0.405504]
[1762793412522,0.4721,3531.7,3531.1,0.405504]
[1762793412711,0.201,3531.9,3530.6,5.48663253]
[1762793412712,0.4721,3531.6,3530.7,0.405504]
[1762793412917,0.4721,3531.6,3530.8,1.85571328]
[1762793413251,0.4721,3531.6,3530.7,1.259712]
[1762793413425,0.202,3531.9,3530.8,1.06796008]
[1762793413624,0.202,3531.9,3531.0,0.405504]
[1762793413625,2.83143813,3531.8,3531.0,0.405504]
[1762793413825,0.202,3531.9,3531.2,0.405504]
[1762793414044,2.83181086,3531.4,3531.2,0.405504]
[1762793414350,0.4874,3531.3,3531.1,7.5]
[1762793414757,0.5053323,3531.9,3531.1,0.405504]
[1762793414758,0.516,3531.2,3531.1,0.405504]
[1762793415058,0.516,3531.2,3530.5,7.5]
[1762793415215,2.83229537,3530.8,3530.6,0.59563029]
[1762793415416,0.679,3530.7,3530.5,7.5]
[1762793415615,0.0483,3530.6,3530.5,7.5]
[1762793415839,0.5204,3530.6,3530.0,1.259712]
[1762793416049,0.5204,3530.6,3530.1,0.59571423]
[1762793416217,0.196,3530.7,3530.2,0.59569217]
[1762793416629,0.196,3530.7,3530.3,0.405504]
[1762793416830,2.83254022,3530.4,3530.3,0.405504]
[1762793417029,3.32001354,3530.4,3529.6,10.33312436]
[1762793417248,0.9595,3530.4,3529.7,1.85529364]
[1762793417447,2.83263055,3530.3,3529.8,0.59558164]
[1762793417651,3.79211935,3530.4,3529.9,0.405504]
[1762793417828,3.30471935,3530.4,3529.9,0.405504]
[1762793418035,2.832709,3530.2,3529.9,0.405504]
[1762793418459,0.196,3530.7,3529.5,1.259712]
[1762793418460,0.4874,3530.0,3529.5,1.259712]
[1762793418658,0.4874,3530.0,3529.6,0.59601832]
[1762793418878,3.32031483,3530.0,3529.7,0.405504]
[1762793419060,0.4874,3529.8,3529.2,0.405504]
[1762793419224,2.8331586,3529.7,3529.3,1.1504022]
[1762793419561,0.4874,3529.8,3529.3,0.55425204]
[1762793419750,0.1945,3529.4,3529.1,0.005]
[1762793420157,0.4721,3529.7,3529.1,1.00699631]
[1762793420457,0.0439,3529.9,3529.3,0.405504]
[1762793420659,0.0439,3529.9,3529.4,0.59649231]
[1762793420660,2.83310735,3529.7,3529.4,0.59649231]
[1762793420860,2.8332625,3529.5,3529.4,0.405504]
[1762793421057,0.0439,3529.9,3529.4,0.405504]
[1762793421058,0.4721,3529.7,3529.4,0.405504]
[1762793421260,3.3052049,3529.7,3529.4,0.405504]
[1762793421564,0.4874,3529.5,3529.4,0.405504]
[1762793421872,3.3206625,3529.5,3529.1,0.005]
[1762793422168,0.1945,3529.2,3529.1,0.005]
[1762793422342,0.4721,3529.4,3529.1,0.005]
[1762793422542,2.8330217,3529.8,3529.1,3.77594972]
[1762793422764,0.0439,3529.9,3529.3,0.405504]
[1762793422948,0.0439,3529.9,3529.2,0.59704277]
[1762793422949,0.4721,3530.4,3529.5,1.665216]
[1762793423150,0.4721,3530.4,3529.9,3.23844496]
[1762793423484,0.4721,3530.4,3530.0,0.59685151]
[1762793423685,2.83247414,3530.5,3530.0,0.59685151]
[1762793423927,2.83254294,3530.4,3530.0,0.59685151]
[1762793424054,2.83255806,3530.4,3530.0,0.59685151]
[1762793424249,0.1952,3530.2,3530.0,0.59685151]
[1762793424454,0.1952,3530.2,3530.1,0.59685151]
[1762793424708,0.196,3530.7,3530.2,0.405504]
[1762793424868,0.196,3530.9,3530.6,0.405504]
[1762793425065,0.1997,3530.9,3530.2,0.405504]
[1762793425379,0.4661,3530.8,3530.4,0.405504]
[1762793425549,0.4661,3530.8,3530.5,0.59747647]
[1762793425550,2.83236109,3530.7,3530.5,0.59747647]
[1762793425746,0.4827,3530.3,3530.1,0.74622248]
[1762793425970,0.4827,3530.3,3529.8,0.405504]
[1762793425971,0.4827,3530.3,3530.2,0.59763324]
[1762793426750,3.78142045,3530.3,3530.2,0.59763324]
[1762793426951,2.83278094,3530.1,3530.0,0.59763324]
[1762793427148,0.6824,3529.9,3529.7,0.74622248]
[1762793427347,0.042,3529.7,3529.5,7.5]
[1762793427589,0.042,3529.7,3529.6,0.59918731]
[1762793427762,0.5081,3529.7,3529.6,0.59918731]
[1762793428095,0.4661,3530.5,3529.6,4.00211227]
[1762793428291,0.4661,3530.4,3529.9,0.405504]
[1762793428459,2.83264154,3530.3,3530.0,0.59918731]
[1762793428659,2.83276633,3530.2,3530.1,0.59918731]
[1762793429200,3.78156633,3530.2,3530.1,0.59918731]
[1762793429380,3.78150069,3530.2,3530.1,0.59918731]
[1762793430262,0.4827,3530.2,3530.1,0.59918731]
[1762793430424,3.78150069,3530.2,3530.1,0.59918731]
[1762793430909,0.9488,3530.2,3530.1,0.59918731]
[1762793431110,0.4661,3530.7,3530.1,1.75474026]
[1762793431309,0.1997,3530.9,3530.3,0.75004895]
[1762793431310,0.4661,3530.8,3530.3,0.75004895]
[1762793431532,0.4661,3530.8,3530.5,0.75004895]
[1762793431694,0.1997,3530.9,3530.7,0.75004895]
[1762793431888,0.1997,3530.9,3530.8,1.34923626]
[1762793432132,0.1997,3530.9,3530.8,0.59918731]
[1762793432508,1.1485,3530.9,3530.8,1.35274812]
[1762793432706,1.1485,3530.9,3530.8,1.35282063]
[1762793432909,0.6824,3530.9,3530.8,1.75832463]
[1762793433438,3.98063911,3530.9,3530.8,0.59918731]
[1762793433617,4.66200793,3530.9,3530.8,1.35348829]
[1762793433807,3.98063911,3530.9,3530.8,0.59918731]
[1762793435241,2.83254022,3530.4,3530.3,0.75430098]
[1762793435385,2.83254022,3530.4,3530.3,1.35825627]
[1762793435592,5.03665222,3530.4,3530.3,1.35825627]
[1762793435894,5.03665222,3530.4,3530.3,0.60395529]
[1762793436129,6.10679957,3530.4,3530.3,0.60395529]
[1762793436800,2.83294144,3529.9,3529.8,0.75430098]
[1762793437027,3.07904144,3529.9,3529.8,1.35838559]
[1762793437190,4.80485344,3529.9,3529.8,0.60408461]
[1762793437396,4.80485344,3529.9,3529.3,0.002]
[1762793437397,2.83334277,3529.4,3529.3,0.75630098]
[1762793437593,3.31604277,3529.4,3529.3,1.36045239]
[1762793437817,3.78214277,3529.4,3529.3,1.36045239]
[1762793438218,3.78214277,3529.4,3529.3,0.60615141]
[1762793438833,2.83350334,3529.2,3529.1,0.005]
[1762793439145,4.09401844,3528.2,3528.1,0.005]
[1762793439444,1.742412,3528.2,3528.1,0.005]
[1762793439615,0.4661,3528.7,3528.1,0.005]
[1762793439816,2.83375337,3528.9,3528.2,0.75430098]
[1762793440038,0.4661,3529.2,3528.4,0.405504]
[1762793440239,2.8335971,3529.1,3528.4,0.405504]
[1762793440438,1.725812,3529.2,3528.4,0.405504]
[1762793440439,0.4661,3529.2,3528.6,2.83395959]
[1762793440648,2.8334754,3529.3,3528.6,3.58826057]
[1762793440946,2.8334754,3529.3,3528.4,1.41065256]
[1762793440947,1.725812,3529.6,3528.5,0.75430098]
[1762793441243,2.83342554,3529.3,3528.5,0.75430098]
[1762793441446,0.4661,3529.5,3528.5,0.75430098]
[1762793441447,2.83374734,3528.9,3528.5,0.75430098]
[1762793441762,0.4827,3528.6,3528.5,0.75430098]
[1762793442053,0.4827,3528.6,3528.3,1.36451688]
[1762793442054,0.4827,3528.6,3528.3,0.75430098]
[1762793442363,0.4827,3528.6,3528.1,0.75930098]
[1762793442364,2.87614578,3528.4,3528.1,0.75930098]
[1762793442528,0.4783,3528.2,3528.1,0.75930098]
[1762793442844,0.4783,3528.2,3528.1,0.005]
[1762793443654,3.77870644,3528.2,3528.1,0.005]
[1762793443861,4.43999412,3528.2,3528.1,0.005]
[1762793444022,5.69970612,3528.2,3528.1,0.005]
[1762793448125,5.69890612,3528.2,3528.1,0.005]
[1762793448323,3.77790644,3528.2,3528.1,0.005]
[1762793448724,0.4661,3528.7,3528.1,0.007]
[1762793448940,3.31700644,3528.2,3528.1,0.007]
[1762793449140,4.57671844,3528.2,3528.1,0.007]
[1762793449332,5.04281844,3528.2,3528.1,0.007]
[1762793449549,5.83052175,3528.2,3528.1,0.007]
[1762793450365,3.78310644,3528.2,3528.1,0.007]
[1762793450863,3.31700644,3528.2,3528.1,0.007]
[1762793451464,3.78310644,3528.2,3528.1,0.007]
[1762793452070,5.04281844,3528.2,3528.1,0.007]
[1762793452271,4.57671844,3528.2,3528.1,0.007]
[1762793452968,5.04281844,3528.2,3528.1,0.007]
[1762793453327,5.83052175,3528.2,3528.1,0.007]
[1762793454335,5.04281844,3528.2,3528.1,0.007]
[1762793454750,5.07411844,3528.2,3528.1,0.007]
[1762793455070,4.57671844,3528.2,3528.1,0.007]
[1762793455494,5.07361844,3528.2,3528.1,0.007]
[1762793456601,2.83462781,3527.8,3527.7,0.002]
[1762793456745,4.60113981,3527.8,3527.7,0.002]
[1762793460396,4.10423981,3527.8,3527.7,0.002]
[1762793460897,4.60113981,3527.8,3527.7,0.002]
[1762793462519,9.1646415,3527.8,3527.7,0.002]
[1762793462665,9.1646415,3527.8,3526.0,7.6817]
[1762793462666,2.83559235,3526.6,3526.1,3.867]
[1762793462856,3.80709235,3526.6,3526.1,3.867]
[1762793463057,1.944512,3527.2,3526.2,0.60466982]
[1762793463260,2.83559235,3526.6,3526.1,4.0541]
[1762793463503,0.4969,3527.4,3526.1,4.0541]
[1762793463680,1.259712,3527.0,3526.2,3.86]
[1762793463885,2.83544204,3526.8,3526.2,3.86]
[1762793464096,2.83543823,3526.8,3526.2,6.69585073]
[1762793464286,3.33225506,3526.9,3526.2,6.69585073]
[1762793464483,3.33225506,3526.9,3526.3,2.83581804]
[1762793464484,1.259712,3526.9,3526.3,2.83581804]
[1762793464672,1.259712,3526.9,3526.2,3.86]
[1762793464871,0.4969,3526.9,3526.2,3.86]
[1762793465073,2.83548282,3526.8,3526.2,3.86]
[1762793465264,3.33226015,3526.9,3526.2,3.86]
[1762793465474,0.4746,3526.6,3526.2,3.86]
[1762793465676,3.31019235,3526.6,3526.1,3.867]
[1762793465876,2.83543323,3526.8,3526.1,4.0541]
[1762793466076,1.259712,3527.3,3526.1,4.0541]
[1762793466077,2.83552236,3526.7,3526.1,4.0541]
[1762793466280,2.83527901,3527.0,3526.1,4.0541]
[1762793466281,2.83559235,3526.6,3526.1,4.0541]
[1762793466802,3.45239181,3526.6,3526.1,4.0541]
[1762793467001,2.83537537,3526.9,3526.3,2.83578034]
[1762793467206,2.83543319,3526.8,3526.2,2.83589318]
[1762793467405,4.28252448,3527.5,3526.1,4.5387]
[1762793467406,0.1879,3527.5,3526.6,3.86]
[1762793467604,0.1879,3528.3,3527.4,0.6836]
[1762793467918,1.259712,3527.9,3527.4,0.6836]
[1762793468126,1.259712,3528.0,3527.4,0.6836]
[1762793468308,2.83446963,3528.0,3527.4,3.51847734]
[1762793468508,0.001,3528.2,3527.4,0.6836]
[1762793468710,2.83452341,3528.0,3527.4,0.6836]
[1762793469024,0.001,3528.2,3527.4,0.1871]
[1762793469228,2.8346061,3527.9,3527.4,0.1871]
[1762793469410,0.001,3528.2,3527.3,0.75430098]
[1762793469729,0.4969,3528.1,3527.3,0.75430098]
[1762793470038,2.8346159,3527.9,3527.2,3.58934416]
[1762793470216,0.4969,3528.1,3527.2,0.75430098]
[1762793470387,0.4969,3528.1,3527.3,0.75430098]
[1762793470582,2.83459741,3527.9,3527.3,0.75430098]
[1762793470825,0.4969,3528.1,3527.3,0.75430098]
[1762793471029,2.83457006,3527.9,3527.3,0.75430098]
[1762793471322,2.83462399,3527.9,3527.3,0.75430098]
[1762793471543,2.83447971,3528.0,3527.3,0.75430098]
[1762793471692,2.83460632,3527.9,3527.3,0.75430098]
[1762793472020,2.83485608,3527.6,3527.3,0.75430098]
[1762793472231,0.001,3528.2,3527.2,0.75430098]
[1762793472232,2.83502962,3527.3,3527.2,0.75430098]
[1762793472413,2.83511,3527.2,3527.1,0.75430098]
[1762793472724,0.4969,3527.5,3526.8,1.00514856]
[1762793472725,0.4969,3527.5,3526.8,0.75430098]
[1762793473299,0.001,3528.2,3527.5,3.24030017]
[1762793473487,0.001,3528.2,3527.8,0.75965472]
[1762793473695,0.001,3528.2,3528.0,2.83445911]
[1762793473895,0.001,3528.2,3528.1,0.6836]
[1762793474196,0.001,3528.2,3528.1,4.40809078]
[1762793474391,0.001,3528.2,3528.1,5.26120634]
[1762793474590,0.001,3528.2,3528.1,6.49257448]
[1762793478315,0.001,3528.2,3528.1,22.5083119]
[1762793478731,0.001,3528.2,3528.1,8.0083119]
[1762793479647,0.001,3528.2,3528.1,13.99257448]
[1762793480150,0.001,3528.2,3528.1,30.00800252]
[1762793480345,0.001,3528.2,3528.1,28.49257448]
[1762793480767,0.001,3528.2,3528.1,19.24826248]
[1762793481078,0.001,3528.2,3528.1,0.75775139]
[1762793481280,0.001,3528.2,3528.0,0.75775139]
[1762793481456,0.001,3528.2,3528.1,4.76033817]
[1762793481626,0.001,3528.2,3528.1,1.089104]
[1762793481827,0.001,3528.2,3528.1,4.40809078]
[1762793482177,0.001,3528.2,3528.1,6.06689161]
[1762793482521,0.005,3528.9,3528.4,3.23964978]
[1762793482864,0.005,3528.9,3528.5,3.73606946]
[1762793483373,0.005,3528.9,3528.5,4.22066946]
[1762793483553,0.005,3528.9,3528.5,8.83742085]
[1762793483750,0.005,3528.9,3528.5,8.26559309]
[1762793483966,3.5235769,3528.9,3528.5,3.859]
[1762793484172,0.005,3528.9,3528.5,3.859]
[1762793484371,0.4756,3528.6,3528.5,3.859]
[1762793484682,3.30958514,3528.6,3528.5,3.859]
[1762793484853,0.4756,3528.6,3528.5,3.859]
[1762793485055,2.83498514,3528.6,3528.5,3.859]
[1762793485253,3.33228514,3528.6,3528.5,3.859]
[1762793485455,3.81928514,3528.6,3528.5,3.859]
[1762793485950,0.9853,3528.6,3528.5,3.859]
[1762793486198,0.001,3528.6,3528.5,3.859]
[1762793486500,2.83422611,3528.3,3528.2,3.859]
[1762793486788,4.75930432,3528.3,3528.2,3.859]
[1762793486976,5.74360432,3528.3,3528.2,3.859]
[1762793487181,2.83494925,3527.4,3527.3,0.002]
[1762793487361,0.0271,3527.4,3527.3,0.002]
[1762793487559,3.33224925,3527.4,3527.3,0.002]
[1762793487863,3.81924925,3527.4,3527.3,0.002]
[1762793488843,5.07896125,3527.4,3527.3,0.002]
[1762793489958,5.87034291,3527.4,3527.3,0.002]
[1762793492693,4.09498276,3527.0,3526.5,0.002]
[1762793492897,4.12208276,3527.0,3526.5,0.002]
[1762793493193,4.60908276,3527.0,3526.5,0.002]
[1762793496182,4.60828276,3527.0,3526.5,0.002]
[1762793496414,5.80897912,3527.0,3526.5,0.002]
[1762793496568,2.83591401,3526.2,3526.1,0.007]
[1762793496906,4.11642601,3526.2,3526.1,0.007]
[1762793497201,4.60342601,3526.2,3526.1,0.007]
[1762793497363,5.28961742,3526.2,3526.1,0.007]
[1762793497566,4.11642601,3526.2,3526.1,0.007]
[1762793497800,4.09562601,3526.2,3526.1,0.007]
[1762793498416,5.07992601,3526.2,3526.1,0.007]
[1762793498611,1.757012,3526.2,3526.1,0.007]
[1762793498811,4.59292601,3526.2,3526.1,0.007]
[1762793499015,4.09562601,3526.2,3526.1,0.4694]
[1762793499228,2.83519038,3527.1,3526.1,0.6565]
[1762793499526,1.61182104,3527.0,3526.1,0.007]
[1762793499830,2.83591401,3526.2,3526.1,0.007]
[1762793500414,0.4973,3526.2,3526.1,0.007]
[1762793500615,0.487,3526.6,3526.1,0.007]
[1762793500821,2.83591401,3526.2,3526.1,0.007]
[1762793501125,3.32231413,3527.0,3526.1,0.007]
[1762793501331,2.8338257,3528.8,3526.2,0.4674]
[1762793501555,2.83453241,3528.0,3527.2,0.6514]
[1762793501792,3.32106546,3528.5,3527.2,3.49148948]
[1762793501927,2.83452505,3528.0,3527.3,0.34914895]
[1762793502249,2.83480031,3527.6,3527.2,0.189]
[1762793502431,0.1989,3527.9,3526.7,0.4674]
[1762793502641,0.1989,3527.9,3526.8,0.4674]
[1762793503146,0.6859,3527.9,3526.4,0.75775139]
[1762793503346,0.6859,3527.9,3526.4,2.83569027]
[1762793503347,2.83525353,3527.1,3526.4,2.83569027]
[1762793503649,2.83484214,3527.6,3526.8,2.83536891]
[1762793503849,0.1989,3527.9,3527.0,0.4624]
[1762793504003,2.83461648,3527.9,3527.1,3.51993964]
[1762793504205,2.83460318,3527.9,3527.2,2.83504518]
[1762793504399,2.83448143,3528.0,3527.3,2.83502552]
[1762793504636,3.32114578,3528.4,3527.3,0.63266668]
[1762793504857,0.487,3528.4,3527.2,2.83510918]
[1762793505035,2.83502007,3528.6,3527.2,2.83510918]